[Event "Czech Open-GM 2022"]
[Site "Pardubice"]
[Date "2022.07.22"]
[Round "1.21"]
[White "Finek, Vaclav"]
[Black "Bartos, Jan"]
[Result "1-0"]
[ECO "D30"]
[WhiteElo "2393"]
[BlackElo "2142"]
[Annotator "TA"]
[PlyCount "83"]
[EventDate "2022.07.22"]
[EventType "swiss"]
[EventCountry "CZE"]
[SourceTitle "playchess.com"]
[Source "ChessBase"]
[SourceQuality "1"]
[TimeControl "40/5400+30:1800+30"]

{[%evp 10,83,22,30,30,18,18,27,32,14,0,0,0,0,23,8,20,0,0,0,0,0,10,0,69,72,78,75,95,93,91,89,212,140,138,116,127,127,281,281,281,273,273,266,345,345,372,372,371,364,357,354,347,338,774,762,788,757,759,771,906,672,1711,969,1179,977,962,750,29953,29957,29948,29955,12261,5118,4631,4614]} 1. d4 {[%emt 0:00:02]} d5 {[%emt 0:00:06]} 2. c4 {[%emt 0:00:04]} e6 {[%emt 0:00:05]} 3. Nf3 {[%emt 0:00:10]} Nf6 {[%emt 0:00:06]} 4. g3 {[%emt 0:00:04]} Bd6 {[%emt 0:00:58]} 5. Bg2 {[%emt 0:00:33]} O-O {[%emt 0:00:05]} 6. O-O {[%emt 0:00:14]} Nc6 {[%emt 0:00:05] 6...h6 is a critical line. D02: 1 d4 d5 2 Nf3 sidelines, including 2...Nf6 3 g3 and 2...Nf6 3 Bf4.} 7. Nc3 {[%emt 0:08:33]} dxc4 {[%emt 0:01:22]} 8. Qa4 {[%emt 0:12:32]} e5 {[%emt 0:05:32] White has an edge.} 9. Qxc4 {[%emt 0:03:25]} (9. d5 {looks sharper.} Nd4 10. Nxd4 exd4 11. Nb5) 9... Nxd4 {[%emt 0:02:35]} 10. Nxd4 {[%emt 0:01:31]} exd4 {[%emt 0:00:05]} 11. Qxd4 {[%emt 0:00:12]} Qe7 {[%emt 0:00:16]} 12. Bg5 {[%emt 0:10:03]} c6 {[%emt 0:04:04] [#] Against Nd5} 13. Ne4 $146 {[%emt 0:10:24]} ({Predecessor:} 13. Rad1 Be5 14. Qe3 Qc7 15. Rd2 Be6 16. Rfd1 Ng4 17. Qe4 Rae8 18. Bf4 Qb6 19. Qf3 {½-½ (25) Peters,A (2337)-Cijs,P (2374) ICCF email 2009}) 13... Be5 {[%emt 0:00:32]} 14. Qe3 {[%emt 0:00:12]} Re8 {[%emt 0:07:50][%cal Of6d5]} 15. Rad1 {[%emt 0:06:18]} Bf5 {[%emt 0:04:24]} 16. Bxf6 {[%emt 0:02:10]} Bxf6 {[%emt 0:00:39]} (16... gxf6 $11 17. b3 Rad8) 17. Nd6 $36 {[%emt 0:03:05][%mdl 2048] White has strong initiative. White is more active.} Qxe3 {[%emt 0:03:29]} 18. fxe3 {[%emt 0:00:07]} Bg4 {[%emt 0:00:19]} 19. Nxe8 {[%emt 0:00:27]} Rxe8 {[%emt 0:00:07]} 20. Rf4 {[%emt 0:01:43]} Bxe2 {[%emt 0:01:44]} (20... Bc8 $16) 21. Rd2 {[%emt 0:00:25]} Ba6 {[%emt 0:00:53]} 22. Re4 {[%emt 0:01:04]} Rxe4 {[%emt 0:00:44]} 23. Bxe4 $16 {[%emt 0:00:10][%mdl 4096] Endgame KRB-KB} g6 $2 {[%emt 0:00:25]} (23... Kf8 $16 {was necessary.} 24. Kf2 (24. Bxh7 g6 $11) 24... h6) 24. Kf2 $18 {[%emt 0:01:30]} Kf8 {[%emt 0:00:37]} 25. Bd3 $1 {[%emt 0:02:19]} Bxd3 {[%emt 0:00:35]} 26. Rxd3 {[%emt 0:00:06] KR-KB} Ke7 {[%emt 0:00:04] [#]} 27. Ra3 $1 {[%emt 0:11:48]} a6 {[%emt 0:04:57]} 28. Rb3 {[%emt 0:00:10]} b5 {[%emt 0:00:10] [#]} 29. Ra3 {[%emt 0:00:57]} Bxb2 {[%emt 0:00:23]} 30. Rxa6 {[%emt 0:00:05]} Kd6 {[%emt 0:06:21]} 31. Ra7 {[%emt 0:00:21]} f6 $2 {[%emt 0:00:48]} (31... Ke6 32. Rc7 Be5 33. Rxc6+ Bd6) 32. Rxh7 {[%emt 0:00:30]} c5 {[%emt 0:00:12]} 33. h4 {[%emt 0:04:37]} c4 {[%emt 0:00:27]} 34. Ke2 {[%emt 0:00:10]} b4 {[%emt 0:05:29]} 35. Rg7 {[%emt 0:04:34]} b3 {[%emt 0:15:55]} 36. axb3 {[%emt 0:00:21]} cxb3 {[%emt 0:00:05]} 37. Rxg6 {[%emt 0:03:05]} Ke6 {[%emt 0:00:32]} 38. Kd3 {[%emt 0:01:00] Intending h5 and mate.} Be5 {[%emt 0:00:17]} 39. h5 {[%emt 0:01:18]} Kf7 {[%emt 0:02:38]} 40. g4 {[%emt 0:04:35][%cal Bg3g4,Bg4g5][%mdl 32]} b2 {[%emt 0:01:06]} 41. Kc2 {[%emt 0:30:10] Black must now prevent g5.} Bc3 {[%emt 0:30:14]} 42. g5 {[%emt 0:00:31] Weighted Error Value: White=0.08 (flawless) /Black=0.52} 1-0

[Event "Czech Open-GM 2022"]
[Site "Pardubice"]
[Date "2022.07.22"]
[Round "1.22"]
[White "Hajiyev, Kanan"]
[Black "Czerw, Dawid"]
[Result "1/2-1/2"]
[ECO "A46"]
[WhiteElo "2142"]
[BlackElo "2391"]
[Annotator "TA"]
[PlyCount "102"]
[EventDate "2022.07.22"]
[EventType "swiss"]
[EventCountry "CZE"]
[SourceTitle "playchess.com"]
[Source "ChessBase"]
[SourceQuality "1"]
[TimeControl "40/5400+30:1800+30"]

{[%evp 9,102,9,26,29,31,27,33,13,19,5,19,0,0,0,0,0,0,-7,0,0,0,-30,0,0,7,0,0,0,0,0,3,-34,0,0,0,-14,0,-34,-27,-25,16,19,18,16,23,23,38,28,35,39,47,35,50,17,91,39,62,0,0,0,37,17,29,9,35,35,26,25,25,26,64,37,63,17,33,33,34,8,8,8,8,0,0,0,0,0,0,0,0,0,0,0,0,0,0]} 1. d4 {[%emt 0:02:27]} Nf6 {[%emt 0:00:13]} 2. Nf3 {[%emt 0:00:04]} e6 {[%emt 0:00:30]} 3. c4 {[%emt 0:00:06]} d5 {[%emt 0:00:30]} 4. cxd5 {[%emt 0:00:06]} exd5 {[%emt 0:00:19]} 5. Nc3 {[%emt 0:00:25]} a6 {[%emt 0:01:13]} 6. Bg5 {[%emt 0:01:09] D37: Queen's Gambit Declined: 5 Bf4.} Be6 {[%emt 0:01:15]} 7. e3 {[%emt 0:04:16]} Nbd7 {[%emt 0:00:30]} 8. Be2 {[%emt 0:01:40] White is slightly better.} c6 {[%emt 0:00:43]} 9. O-O {[%emt 0:00:14]} Bd6 {[%emt 0:00:13]} 10. Qc2 {[%emt 0:01:28]} O-O {[%emt 0:03:28]} 11. Bd3 {[%emt 0:06:23][%cal Od3h7] Strongly threatening Bxh7+!} Qc7 {[%emt 0:03:13]} 12. Rac1 {[%emt 0:00:31] [#]} h6 $146 {[%emt 0:08:10]} ({Predecessor:} 12... Bg4 13. h3 Bh5 14. Nh4 Bg6 15. Nf5 Bxf5 16. Bxf5 h6 17. Bxf6 Nxf6 18. a3 Rfe8 {0-1 (51) Nikolov,M (2584)-Ioannidis,E (2412) Skopje 2019}) 13. Bh4 {[%emt 0:00:23]} Rac8 {[%emt 0:00:37]} 14. Ne2 {[%emt 0:03:24]} Rfe8 {[%emt 0:09:05]} 15. Rfd1 {[%emt 0:02:54]} Qb8 {[%emt 0:04:15][%cal Of6e4]} (15... Ne4 $5) 16. Bg3 {[%emt 0:01:07]} Ne4 {[%emt 0:05:01]} 17. Bxe4 {[%emt 0:05:34]} (17. Bxd6 {looks sharper.} Qxd6 18. Nd2 Bf5 19. Nf4) 17... dxe4 {[%emt 0:00:06]} 18. Nd2 {[%emt 0:00:06]} ({Don't play} 18. Qxe4 {[#]} Bb3 $1 19. Qd3 Bxd1 20. Qxd1 g6 $15) 18... f5 {[%emt 0:00:54]} 19. Nc4 {[%emt 0:11:33]} Bxg3 {[%emt 0:01:34]} 20. fxg3 {[%emt 0:02:33]} Nf6 {[%emt 0:01:50]} 21. Nb6 {[%emt 0:01:54]} Rcd8 {[%emt 0:01:22]} 22. Rf1 {[%emt 0:10:11]} Qd6 {[%emt 0:06:51]} 23. Qc5 {[%emt 0:01:32] Against Qb4} Ng4 {[%emt 0:10:06]} 24. Qc3 {[%emt 0:11:58]} Qe7 {[%emt 0:04:44]} 25. h3 {[%emt 0:00:50]} Nf6 {[%emt 0:00:15]} 26. a4 {[%emt 0:02:25]} g5 {[%emt 0:06:41]} 27. Qc5 {[%emt 0:01:30]} Qg7 {[%emt 0:04:48]} 28. b4 {[%emt 0:01:25]} Nd5 {[%emt 0:05:58]} 29. Nxd5 {[%emt 0:00:38]} Rxd5 {[%emt 0:00:18]} 30. Qb6 {[%emt 0:01:18]} Rf8 {[%emt 0:03:12]} 31. Kh2 {[%emt 0:00:15]} (31. g4 $5) 31... Rd7 {[%emt 0:01:39]} (31... Qe7 $11) 32. Rc5 {[%emt 0:02:41]} ({Better is} 32. b5 $16 axb5 33. axb5) 32... Bd5 {[%emt 0:01:48]} 33. Rf2 {[%emt 0:00:46]} (33. b5 $14) 33... Kh7 {[%emt 0:01:52]} 34. Rc1 {[%emt 0:04:18]} Rdf7 {[%emt 0:01:15]} 35. Qc5 {[%emt 0:00:49]} Rf6 {[%emt 0:04:53]} 36. Rcf1 {[%emt 0:01:11]} h5 {[%emt 0:03:13]} 37. Nc3 {[%emt 0:01:25]} Qd7 {[%emt 0:02:27]} 38. b5 {[%emt 0:01:01]} axb5 {[%emt 0:00:33]} 39. axb5 {[%emt 0:00:01]} R8f7 {[%emt 0:01:00]} 40. bxc6 {[%emt 0:03:27]} bxc6 {[%emt 0:00:26]} 41. Ra1 {[%emt 0:32:15]} (41. h4 $14) 41... f4 {[%emt 0:16:32]} 42. gxf4 {[%emt 0:00:00]} gxf4 {[%emt 0:00:05]} 43. Rxf4 {[%emt 0:00:00]} Rxf4 {[%emt 0:01:38] The position is equal.} 44. exf4 {[%emt 0:00:00][%cal Oc3e4] [#] Nxe4! is the strong threat.} Qf5 {[%emt 0:00:52]} 45. Qd6 {[%emt 0:00:00]} e3 {[%emt 0:04:43]} 46. Nxd5 {[%emt 0:00:00]} cxd5 {[%emt 0:00:15]} 47. Re1 {[%emt 0:00:00]} Qxf4+ {[%emt 0:01:28]} 48. Qxf4 {[%emt 0:00:00]} Rxf4 {[%emt 0:00:04]} 49. Rxe3 {[%emt 0:00:00]} Rxd4 $11 {[%emt 0:00:06] KR-KR} 50. Kg3 {[%emt 0:00:00]} Kg6 {[%emt 0:01:54]} 51. Re8 {[%emt 0:00:00]} Rd2 {[%emt 0:03:47] Weighted Error Value: White=0.10 (very precise) /Black=0.12 (very precise)} 1/2-1/2

[Event "Czech Open-GM 2022"]
[Site "Pardubice"]
[Date "2022.07.22"]
[Round "1.23"]
[White "Klabis, Rokas"]
[Black "Haufe, Laurin"]
[Result "1-0"]
[ECO "B19"]
[WhiteElo "2382"]
[BlackElo "2142"]
[Annotator "TA"]
[PlyCount "53"]
[EventDate "2022.07.22"]
[EventType "swiss"]
[EventCountry "CZE"]
[SourceTitle "playchess.com"]
[Source "ChessBase"]
[SourceQuality "1"]
[TimeControl "40/5400+30:1800+30"]

{[%evp 23,53,8,35,39,18,29,93,93,91,95,165,154,133,155,198,197,205,122,216,231,343,318,438,447,800,824,811,835,835,631,29981,3095]} 1. e4 {[%emt 0:00:03]} c6 {[%emt 0:00:04]} 2. d4 {[%emt 0:00:15]} d5 {[%emt 0:00:05]} 3. Nc3 {[%emt 0:00:08]} dxe4 {[%emt 0:00:26]} 4. Nxe4 {[%emt 0:00:06]} Bf5 {[%emt 0:00:05]} 5. Ng3 {[%emt 0:00:09]} Bg6 {[%emt 0:00:06]} 6. h4 {[%emt 0:00:15]} h6 {[%emt 0:00:03]} 7. Nf3 {[%emt 0:00:07]} Nd7 {[%emt 0:00:06]} 8. h5 {[%emt 0:00:35]} Bh7 {[%emt 0:00:05]} 9. Bd3 {[%emt 0:00:04]} Bxd3 {[%emt 0:00:08]} 10. Qxd3 {[%emt 0:00:04]} e6 {[%emt 0:00:25]} 11. Bd2 $1 {[%emt 0:01:42] The main line 11.Bd2 scores better than 11.Bf4.} Ngf6 {[%emt 0:00:38]} 12. O-O-O {[%emt 0:00:20]} Bd6 {[%emt 0:03:27]} 13. Kb1 {[%emt 0:03:38] B19: Classical Caro-Kann: 4...Bf5 main line.} O-O {[%emt 0:02:15]} 14. Ne4 {[%emt 0:01:13]} Nxe4 {[%emt 0:00:08]} (14... Be7 $11 {remains equal.}) 15. Qxe4 $16 {[%emt 0:00:03] White is better.} Nf6 {[%emt 0:00:09]} 16. Qe2 {[%emt 0:01:50][%cal Og2g4] [#] White is more active.} Re8 $146 {[%emt 0:03:16]} (16... Qc7 $16) ({Predecessor:} 16... Bc7 17. g4 Nxg4 18. Rdg1 f5 19. Qxe6+ Kh8 20. Nh4 Rf6 21. Qe2 Qe8 22. Qf3 Qxh5 {1-0 (55) Khanin,S (2482)-Zahedifar,A (2213) Chess.com INT 2020}) 17. g4 $1 $18 {[%emt 0:16:40] g5 is the strong threat.} Nh7 {[%emt 0:15:40] Inhibits g5.} ({Weaker is} 17... Nxg4 18. Rdg1 f5 19. Ne5 $16) 18. Ne5 {[%emt 0:09:02]} Qc7 {[%emt 0:03:36]} 19. f4 $1 {[%emt 0:00:28]} c5 {[%emt 0:06:48]} 20. dxc5 {[%emt 0:05:44]} (20. g5 $1 $18 {[%cal Rg5h6]}) 20... Qxc5 {[%emt 0:01:22] [#]} (20... Bxe5 $16 21. Qxe5 Rac8) 21. Nd3 $1 {[%emt 0:09:07]} Qb5 {[%emt 0:02:11] [#]} (21... Qd5 $142 22. g5 hxg5) 22. g5 $1 {[%emt 0:03:52]} hxg5 {[%emt 0:13:52]} 23. fxg5 {[%emt 0:00:18]} Nxg5 {[%emt 0:06:18]} (23... e5 $142 24. g6 e4 25. gxh7+ Kxh7) 24. h6 {[%emt 0:02:21][%cal Bh5h6,Bh6h7][%mdl 32]} g6 {[%emt 0:02:16]} 25. c4 {[%emt 0:00:49]} Qf5 {[%emt 0:00:25]} 26. Rdf1 {[%emt 0:00:08]} Qe4 {[%emt 0:00:53]} 27. h7+ {Weighted Error Value: White=0.17 (very precise) /Black=1.00} 1-0

[Event "Czech Open-GM 2022"]
[Site "Pardubice"]
[Date "2022.07.22"]
[Round "1.24"]
[White "Michelle Catherina, P."]
[Black "Niedbala, Bartlomiej"]
[Result "0-1"]
[ECO "B38"]
[WhiteElo "2141"]
[BlackElo "2381"]
[Annotator "TA"]
[PlyCount "118"]
[EventDate "2022.07.22"]
[EventType "swiss"]
[EventCountry "CZE"]
[SourceTitle "playchess.com"]
[Source "ChessBase"]
[SourceQuality "1"]
[TimeControl "40/5400+30:1800+30"]

{[%evp 22,118,66,60,75,68,74,76,71,72,81,52,67,63,66,55,64,61,58,31,44,8,21,-64,-72,-57,-59,-72,-72,-74,-79,-83,-87,-88,-83,-106,-92,-98,-56,-136,-95,-147,-147,-215,-182,-239,-230,-230,-203,-354,-670,-795,-425,-758,-757,-735,-172,-1378,-1495,-1638,-1763,-1720,-1651,-1651,0,0,0,-1695,-1691,-1317,-1437,-1885,-1622,-1541,-1412,-1273,-1413,-29968,-29969,-29971,-29969,-12842,-6560,-29976,-29977,-29977,-29978,-29979,-29976,-29972,-29971,-29961,-29968,-29988,-29989,-29990,-29991,-29991,-29991]} 1. e4 {[%emt 0:02:14]} c5 {[%emt 0:00:24]} 2. Nf3 {[%emt 0:00:12]} g6 {[%emt 0:00:17]} 3. d4 {[%emt 0:00:59]} cxd4 {[%emt 0:00:20]} 4. Nxd4 {[%emt 0:00:16]} Bg7 {[%emt 0:00:09]} 5. c4 {[%emt 0:00:09]} Nc6 {[%emt 0:00:07]} 6. Be3 {[%emt 0:00:32]} Qb6 {[%emt 0:00:08]} 7. Nb3 {[%emt 0:08:44]} Qd8 {[%emt 0:01:27]} 8. Nd4 {[%emt 0:00:34]} Nf6 {[%emt 0:00:28]} 9. Nc3 {[%emt 0:00:16]} O-O {[%emt 0:00:03]} 10. Be2 {[%emt 0:01:39]} b6 {[%emt 0:00:17]} 11. Qd2 {[%emt 0:02:34] is currently scoring better than 11.0-0.} Bb7 {[%emt 0:01:44]} 12. f3 {[%emt 0:00:48]} a6 {[%emt 0:00:16] B38: Sicilian: Maroczy Bind with 5...Bg7 and 7...0-0.} 13. O-O {[%emt 0:02:41] [#]} Nxd4 $146 {[%emt 0:02:07]} ({Predecessor:} 13... Re8 14. Rfd1 Rc8 15. Rac1 Qc7 {½-½ (13) Salazar,C (2167)-Cruz Pereyra,A (1947) Cochabamba 2013}) 14. Bxd4 {[%emt 0:01:33]} d6 {[%emt 0:00:04] White is better.} 15. Rac1 {[%emt 0:04:06]} Bc6 {[%emt 0:03:41]} 16. b3 {[%emt 0:02:32]} Nd7 {[%emt 0:00:57]} 17. Be3 {[%emt 0:01:45]} a5 {[%emt 0:04:19]} 18. a3 {[%emt 0:06:00]} Nc5 {[%emt 0:06:34]} 19. Rb1 {[%emt 0:01:39]} Be5 {[%emt 0:01:37]} 20. Bh6 {[%emt 0:04:16]} Re8 {[%emt 0:02:16]} 21. Kh1 {[%emt 0:08:15]} e6 {[%emt 0:04:39] Strongly threatening ...Qh4.} 22. f4 {[%emt 0:12:00]} (22. Bf4 $11) 22... Bxc3 $15 {[%emt 0:04:41]} 23. Qxc3 {[%emt 0:00:03][%csl Gh6][%cal Rc3g7]} e5 $1 {[%emt 0:02:30]} 24. fxe5 {[%emt 0:11:11]} dxe5 {[%emt 0:01:22]} (24... Bxe4 $2 25. exd6 $1 Ne6 26. Bg4 $1 $18) 25. Bf3 {[%emt 0:06:18]} ({Much worse is} 25. Qf3 f5 26. Rbd1 Qe7 $17) 25... Nxe4 {[%emt 0:24:55]} 26. Qe3 {[%emt 0:03:16]} f5 {[%emt 0:08:29]} 27. Rbd1 {[%emt 0:03:34] [#]} Qc7 {[%emt 0:03:27]} 28. b4 {[%emt 0:01:45]} axb4 {[%emt 0:02:11]} 29. axb4 {[%emt 0:00:02]} Nf6 {[%emt 0:06:04]} 30. Be2 {[%emt 0:05:15]} (30. Bg5 $15 Ne4 31. Bh4) 30... f4 {[%emt 0:01:50]} 31. Qh3 {[%emt 0:01:12]} (31. Qc3 $142) 31... Ra2 $17 {[%emt 0:07:55]} 32. Rde1 {[%emt 0:02:01]} (32. Rfe1 $17) 32... Qf7 {[%emt 0:01:02]} 33. Qh4 {[%emt 0:01:44]} (33. Qb3 {might work better.} Rea8 34. Qd3) 33... Rd8 {[%emt 0:01:50]} 34. b5 {[%emt 0:05:17]} Ba8 {[%emt 0:00:42] White must now prevent ...Rdd2.} 35. Bg5 $2 {[%emt 0:01:25]} (35. Kg1) 35... Rdd2 $19 {[%emt 0:01:29]} ({But not} 35... Qb7 36. Rf2 Qf7 37. Bxf6 $18) 36. Bxf6 {[%emt 0:00:24]} Rxe2 {[%emt 0:00:02]} 37. Rxe2 {[%emt 0:00:08]} Rxe2 {[%emt 0:00:06]} 38. Rd1 {[%emt 0:00:35]} Qc7 $2 $40 {[%emt 0:02:24][%mdl 128] Black wants a kill.} ({Weaker is} 38... Bxg2+ 39. Kg1 Qe6 40. Rd8+ Kf7 41. Bxe5 $11) (38... Qf8 39. Rd8 Qxd8 40. Bxd8 Rxg2) 39. Rd8+ $2 {[%emt 0:01:26] [#]} (39. Bxe5 Rxe5 40. Rd8+ Kg7 41. Rxa8) 39... Qxd8 $3 {[%emt 0:00:02][%mdl 512]} 40. Bxd8 {[%emt 0:00:09]} Rxg2 {[%emt 0:00:15][%cal Rg2g4]} 41. h3 {[%emt 0:02:42]} Rg4+ $1 {[%emt 0:01:46]} 42. Kh2 {[%emt 0:00:01]} Rg2+ $2 {[%emt 0:00:46]} (42... Rxh4 $19 43. Bxh4 Kf7) 43. Kh1 $11 {[%emt 0:00:01]} Rg4+ $2 {[%emt 0:00:08][%mdl 8192]} (43... Rg3+ $11 44. Kh2 Rg2+ 45. Kh1) 44. Kh2 $19 {[%emt 0:00:01] Black continues to play with concentration.} Rxh4 {[%emt 0:00:06]} 45. Bxh4 {[%emt 0:00:04][%mdl 4096] Endgame KB-KB} Kf7 {[%emt 0:00:41] ...Ke6 is the strong threat.} 46. Bf2 {[%emt 0:06:32]} Ke6 {[%emt 0:00:27] aiming for ...e4.} 47. Bxb6 {[%emt 0:00:41]} Be4 {[%emt 0:00:51]} 48. Bc7 {[%emt 0:04:15]} g5 {[%emt 0:00:18] Hoping for ...Bd3.} 49. Kg1 {[%emt 0:03:00]} h5 {[%emt 0:00:45][%cal Bh7h5,Bh5g4,Bg4g3][%mdl 32]} 50. Kf2 {[%emt 0:00:35]} Bd3 {[%emt 0:01:01]} 51. b6 {[%emt 0:00:24]} Be4 {[%emt 0:00:01] ( -> ...Bc6)} 52. Ke2 {[%emt 0:00:37]} g4 {[%emt 0:00:37] Black mates.} 53. hxg4 {[%emt 0:02:38]} hxg4 {[%emt 0:00:14]} 54. Bd8 {[%emt 0:01:45]} Kf5 {[%emt 0:01:33]} 55. Bh4 {[%emt 0:00:15]} g3 {[%emt 0:00:32]} 56. Ke1 {[%emt 0:00:35]} Kg4 {[%emt 0:00:19]} 57. Bf6 {[%emt 0:00:25]} f3 {[%emt 0:00:27][%cal Bf4f3,Bf3f2][%mdl 32]} 58. Bxe5 {[%emt 0:01:02]} f2+ {[%emt 0:00:06]} 59. Ke2 {[%emt 0:00:04]} Bg2 {[%emt 0:00:05] Weighted Error Value: White=0.64/Black=0.34} 0-1

[Event "Czech Open-GM 2022"]
[Site "Pardubice"]
[Date "2022.07.22"]
[Round "1.25"]
[White "Neuman, Petr"]
[Black "ter Stal, Rainer"]
[Result "1-0"]
[ECO "E32"]
[WhiteElo "2378"]
[BlackElo "2141"]
[Annotator "TA"]
[PlyCount "81"]
[EventDate "2022.07.22"]
[EventType "swiss"]
[EventCountry "CZE"]
[SourceTitle "playchess.com"]
[Source "ChessBase"]
[SourceQuality "1"]
[TimeControl "40/5400+30:1800+30"]

{[%evp 15,81,58,81,71,90,100,102,64,111,45,164,153,155,141,146,133,156,125,122,78,169,172,172,172,163,138,172,178,167,122,157,157,165,152,167,168,213,198,352,345,388,384,356,371,333,304,487,457,473,453,425,457,456,455,413,322,566,556,543,529,682,654,916,919,875,849,877,847]} 1. d4 {[%emt 0:00:05]} Nf6 {[%emt 0:00:31]} 2. c4 {[%emt 0:00:04]} e6 {[%emt 0:00:08]} 3. Nc3 {[%emt 0:00:04]} Bb4 {[%emt 0:00:05]} 4. Qc2 {[%emt 0:00:08]} O-O {[%emt 0:00:08]} 5. a3 {[%emt 0:00:03]} Bxc3+ {[%emt 0:00:09]} 6. Qxc3 {[%emt 0:00:03]} Qe8 {[%emt 0:00:14]} 7. f3 {[%emt 0:01:28]} d6 {[%emt 0:00:44]} 8. e4 {[%emt 0:01:18] The main line 8.e4 scores better than 8.Bg5.} e5 {[%emt 0:01:57]} 9. Be3 {[%emt 0:02:26] E32: Nimzo-Indian: Classical (4 Qc2): 4...0-0.} Nbd7 {[%emt 0:07:22]} 10. Ne2 {[%emt 0:12:38]} a5 {[%emt 0:09:28]} 11. b3 {[%emt 0:01:36] White is better.} c6 {[%emt 0:07:03] [#]} (11... exd4 $14 12. Nxd4 (12. Qxd4 b6 $11) (12. Bxd4 b6 $14) 12... Qe7) 12. Kf2 $146 {[%emt 0:04:54]} (12. Rd1 $16) ({Predecessor:} 12. d5 Nc5 13. Nc1 b6 14. Be2 cxd5 15. cxd5 Ba6 16. Bxa6 Rxa6 17. O-O Qb5 18. Ra2 {1-0 (44) Husemann,A (2224)-Galje,H (2117) LSS email 2014}) 12... d5 {[%emt 0:12:03]} (12... Qe7 $14) 13. cxd5 $18 {[%emt 0:01:22]} cxd5 {[%emt 0:01:50]} 14. dxe5 {[%emt 0:01:16]} Qxe5 15. Bd4 {[%emt 0:01:23]} Qb8 {[%emt 0:23:20]} 16. e5 {[%emt 0:03:12]} Ne8 {[%emt 0:01:43]} 17. Nf4 {[%emt 0:01:58]} Nc7 {[%emt 0:01:01]} (17... f6 $16) 18. Rc1 {[%emt 0:07:00]} Ne6 {[%emt 0:01:46]} 19. Nxe6 {[%emt 0:00:09]} (19. Nxd5 Nxd4 20. Qxd4 Qxe5 21. Qxe5 Nxe5 $16) 19... fxe6 20. Bb5 {[%emt 0:00:51]} b6 {[%emt 0:03:00]} 21. Qc7 $36 {[%emt 0:01:47][%mdl 2048] Prevents Nc5. White has strong initiative.} Rf7 {[%emt 0:06:21]} 22. Ke3 {[%emt 0:07:04]} Nf8 {[%emt 0:04:31]} 23. Qxb8 {[%emt 0:05:22] 0x0.0019ea2eafe5dp-1022s more active pieces. The black rooks are badly placed.} (23. Qxb6 $2 Rb7 24. Rxc8 Qxc8 $19) 23... Rxb8 {[%emt 0:00:01]} 24. Bd3 {[%emt 0:00:35]} Bd7 {[%emt 0:04:01]} 25. Rc7 {[%emt 0:00:59]} Be8 {[%emt 0:01:06]} 26. Rhc1 {[%emt 0:00:29]} Rb7 $2 {[%emt 0:00:52] [#]} (26... Rxc7 27. Rxc7 Nd7) 27. Rc8 {[%emt 0:01:12]} Rfe7 {[%emt 0:02:12]} 28. Ra8 {[%emt 0:01:20]} Kf7 {[%emt 0:08:10]} 29. Rcc8 {[%emt 0:01:43]} Ng6 {[%emt 0:02:37]} 30. g3 {[%emt 0:00:42][%cal Bg2g3,Bg3g4][%mdl 32]} a4 $2 {[%emt 0:01:14] [#]} (30... Rbc7 31. Rcb8 (31. Bxb6 Rxc8 32. Rxc8 Nxe5 $18) 31... a4 32. bxa4 Rb7) 31. b4 {[%emt 0:00:18]} Rbc7 {[%emt 0:00:36]} 32. f4 {[%emt 0:00:34]} Rxc8 {[%emt 0:00:29]} 33. Rxc8 {[%emt 0:00:06]} Rb7 {[%emt 0:00:18]} 34. Ra8 {[%emt 0:05:56]} Ne7 {[%emt 0:00:40]} 35. g4 {[%emt 0:00:15] Inhibits Nf5+.} g6 $2 {[%emt 0:01:24]} (35... Bd7 {keeps fighting.} 36. b5 (36. Bxh7 g6 $16) 36... Nc8 37. Rxa4 (37. Bxh7 g6 $11) 37... Na7) 36. Ba6 {[%emt 0:03:52] White is clearly winning.} Rc7 {[%emt 0:00:10]} 37. Bxb6 {[%emt 0:04:25] This bishop pair is nice.} Rc3+ {[%emt 0:00:41]} 38. Kd4 {[%emt 0:02:00]} Rxa3 {[%emt 0:01:01]} 39. Ra7 {[%emt 0:00:05] Against Bd7} Rf3 {[%emt 0:00:31]} 40. Bc5 {[%emt 0:00:11]} Rxf4+ {[%emt 0:00:11]} 41. Ke3 {[%emt 0:33:26] Weighted Error Value: White=0.11 (very precise) /Black=0.51} 1-0